[Event "Titled Tuesday Blitz June 20 Early 2023"]
[White "Renjith, Sravan"]
[Black "Vlassov, Nikolai"]
[WhiteFideId "4306783"]
[BlackFideId "4103360"]
[WhiteElo "2104"]
[BlackElo "2324"]
[Result "1/2-1/2"]
[Round "9"]
[TimeControl "180+2"]
[Date "2023.06.20"]
[WhiteClock "0:00:08"]
[BlackClock "0:00:11"]
[Board "46"]

1. b3 {[%clk 0:03:00]}  e5 {[%clk 0:02:59]} 2. Bb2 {[%clk 0:03:00]}  Nc6 {[%clk 0:02:59]} 3. e3 {[%clk 0:02:58]}  a6 {[%clk 0:03:00]} 4. Nf3 {[%clk 0:02:58]}  e4 {[%clk 0:02:59]} 5. Ne5 {[%clk 0:02:58]}  Qf6 {[%clk 0:02:56]} 6. d4 {[%clk 0:02:54]}  exd3 {[%clk 0:02:43]} 7. Nxd3 {[%clk 0:02:52]}  Qg6 {[%clk 0:02:28]} 8. Nf4 {[%clk 0:02:38]}  Qh6 {[%clk 0:02:22]} 9. Bd3 {[%clk 0:02:13]}  Nf6 {[%clk 0:02:22]} 10. O-O {[%clk 0:02:08]}  Bd6 {[%clk 0:02:19]} 11. Nd2 {[%clk 0:02:02]}  O-O {[%clk 0:02:07]} 12. Bxf6 {[%clk 0:01:17]}  Bxf4 {[%clk 0:01:57]} 13. exf4 {[%clk 0:01:12]}  Qxf6 {[%clk 0:01:56]} 14. g3 {[%clk 0:01:05]}  d6 {[%clk 0:01:56]} 15. Ne4 {[%clk 0:01:04]}  Qh6 {[%clk 0:01:51]} 16. Ng5 {[%clk 0:01:02]}  g6 {[%clk 0:01:41]} 17. Bc4 {[%clk 0:01:02]}  Nd8 {[%clk 0:01:35]} 18. Re1 {[%clk 0:00:53]}  Qg7 {[%clk 0:01:26]} 19. Re7 {[%clk 0:00:42]}  c6 {[%clk 0:01:26]} 20. Qe1 {[%clk 0:00:27]}  d5 {[%clk 0:01:26]} 21. Bd3 {[%clk 0:00:27]}  h6 {[%clk 0:01:23]} 22. Nf3 {[%clk 0:00:27]}  Ne6 {[%clk 0:01:19]} 23. f5 {[%clk 0:00:24]}  Qf6 {[%clk 0:01:17]} 24. fxe6 {[%clk 0:00:12]}  Qxe7 {[%clk 0:01:17]} 25. exf7+ {[%clk 0:00:12]}  Rxf7 {[%clk 0:01:12]} 26. Ne5 {[%clk 0:00:13]}  Rf6 {[%clk 0:01:05]} 27. Nxg6 {[%clk 0:00:12]}  Qxe1+ {[%clk 0:01:00]} 28. Rxe1 {[%clk 0:00:13]}  Re6 {[%clk 0:00:52]} 29. Ne5 {[%clk 0:00:13]}  Kg7 {[%clk 0:00:51]} 30. f4 {[%clk 0:00:13]}  c5 {[%clk 0:00:48]} 31. Kf2 {[%clk 0:00:13]}  b5 {[%clk 0:00:48]} 32. c4 {[%clk 0:00:12]}  dxc4 {[%clk 0:00:45]} 33. bxc4 {[%clk 0:00:13]}  Bb7 {[%clk 0:00:44]} 34. Re2 {[%clk 0:00:11]}  b4 {[%clk 0:00:40]} 35. g4 {[%clk 0:00:11]}  Rae8 {[%clk 0:00:37]} 36. Kg3 {[%clk 0:00:11]}  a5 {[%clk 0:00:37]} 37. Bf5 {[%clk 0:00:11]}  Rd6 {[%clk 0:00:36]} 38. h4 {[%clk 0:00:12]}  a4 {[%clk 0:00:36]} 39. g5 {[%clk 0:00:12]}  hxg5 {[%clk 0:00:35]} 40. hxg5 {[%clk 0:00:13]}  b3 {[%clk 0:00:30]} 41. axb3 {[%clk 0:00:13]}  axb3 {[%clk 0:00:30]} 42. Rb2 {[%clk 0:00:09]}  Rb6 {[%clk 0:00:29]} 43. Bd7 {[%clk 0:00:09]}  Ra8 {[%clk 0:00:27]} 44. Bb5 {[%clk 0:00:09]}  Ra2 {[%clk 0:00:27]} 45. Rxb3 {[%clk 0:00:09]}  Be4 {[%clk 0:00:22]} 46. Re3 {[%clk 0:00:08]}  Rg2+ {[%clk 0:00:20]} 47. Kh3 {[%clk 0:00:08]}  Ba8 {[%clk 0:00:20]} 48. f5 {[%clk 0:00:08]}  Rxg5 {[%clk 0:00:17]} 49. Rg3 {[%clk 0:00:04]}  Kf6 {[%clk 0:00:15]} 50. Nd7+ {[%clk 0:00:04]}  Kxf5 {[%clk 0:00:12]} 51. Rxg5+ {[%clk 0:00:05]}  Kxg5 {[%clk 0:00:12]} 52. Nxb6 {[%clk 0:00:05]}  Be4 {[%clk 0:00:11]} 53. Nd7 {[%clk 0:00:06]}  Bf5+ {[%clk 0:00:10]} 54. Kg3 {[%clk 0:00:06]}  Bd3 {[%clk 0:00:09]} 55. Nxc5 {[%clk 0:00:06]}  Bxc4 {[%clk 0:00:10]} 56. Bxc4 {[%clk 0:00:07]}  Kf5 {[%clk 0:00:10]} 57. Kf3 {[%clk 0:00:07]}  Ke5 {[%clk 0:00:11]} 58. Ne4 {[%clk 0:00:07]}  Kd4 {[%clk 0:00:11]} 59. Be2 {[%clk 0:00:08]}  Ke5 {[%clk 0:00:11]} 60. Ke3 {[%clk 0:00:09]}  Kf5 {[%clk 0:00:11]} 61. Bf3 {[%clk 0:00:10]}  Ke5 {[%clk 0:00:12]} 62. Bg4 {[%clk 0:00:10]}  Kd5 {[%clk 0:00:11]} 63. Kf4 {[%clk 0:00:11]}  Kd4 {[%clk 0:00:10]} 64. Be6 {[%clk 0:00:11]}  Kd3 {[%clk 0:00:11]} 65. Nc5+ {[%clk 0:00:10]}  Kd4 {[%clk 0:00:10]} 66. Nd7 {[%clk 0:00:11]}  Kd3 {[%clk 0:00:10]} 67. Ke5 {[%clk 0:00:12]}  Kc3 {[%clk 0:00:10]} 68. Bd5 {[%clk 0:00:11]}  Kd3 {[%clk 0:00:10]} 69. Nf6 {[%clk 0:00:11]}  Kc3 {[%clk 0:00:11]} 70. Ke4 {[%clk 0:00:11]}  Kd2 {[%clk 0:00:10]} 71. Kd4 {[%clk 0:00:11]}  Kc2 {[%clk 0:00:10]} 72. Ne4 {[%clk 0:00:11]}  Kb2 {[%clk 0:00:10]} 73. Kc4 {[%clk 0:00:12]}  Kc2 {[%clk 0:00:10]} 74. Kd4 {[%clk 0:00:12]}  Kb2 {[%clk 0:00:11]} 75. Kd3 {[%clk 0:00:12]}  Ka3 {[%clk 0:00:10]} 76. Kc3 {[%clk 0:00:12]}  Ka4 {[%clk 0:00:10]} 77. Kc4 {[%clk 0:00:12]}  Ka3 {[%clk 0:00:10]} 78. Nc3 {[%clk 0:00:11]}  Kb2 {[%clk 0:00:11]} 79. Be4 {[%clk 0:00:11]}  Kc1 {[%clk 0:00:11]} 80. Kd3 {[%clk 0:00:11]}  Kb2 {[%clk 0:00:11]} 81. Bd5 {[%clk 0:00:12]}  Ka3 {[%clk 0:00:11]} 82. Kc4 {[%clk 0:00:11]}  Kb2 {[%clk 0:00:11]} 83. Ne4 {[%clk 0:00:08]}  Kc2 {[%clk 0:00:11]} 84. Kd4 {[%clk 0:00:08]} 1/2-1/2


[Site "https://www.chess.com"]

[Event "Titled Tuesday Blitz June 20 Early 2023"]
[White "Ovchinnikov, Vsevolod"]
[Black "Goryachkina, Aleksandra"]
[WhiteFideId "24176842"]
[BlackFideId "4147103"]
[WhiteElo "2376"]
[BlackElo "2471"]
[Result "1/2-1/2"]
[Round "9"]
[TimeControl "180+2"]
[Date "2023.06.20"]
[WhiteClock "0:01:38"]
[BlackClock "0:01:27"]
[Board "52"]

1. Nf3 {[%clk 0:03:00]}  d5 {[%clk 0:02:58]} 2. c4 {[%clk 0:03:01]}  e6 {[%clk 0:02:58]} 3. g3 {[%clk 0:03:01]}  Nf6 {[%clk 0:02:52]} 4. Bg2 {[%clk 0:03:02]}  dxc4 {[%clk 0:02:52]} 5. Qa4+ {[%clk 0:03:02]}  c6 {[%clk 0:02:52]} 6. Qxc4 {[%clk 0:03:02]}  b5 {[%clk 0:02:52]} 7. Qc2 {[%clk 0:03:02]}  Bb7 {[%clk 0:02:52]} 8. O-O {[%clk 0:03:01]}  Nbd7 {[%clk 0:02:50]} 9. b3 {[%clk 0:02:54]}  Be7 {[%clk 0:02:39]} 10. Bb2 {[%clk 0:02:54]}  c5 {[%clk 0:02:33]} 11. Nc3 {[%clk 0:02:50]}  a6 {[%clk 0:02:32]} 12. d3 {[%clk 0:02:37]}  O-O {[%clk 0:02:30]} 13. Rac1 {[%clk 0:02:35]}  Rc8 {[%clk 0:02:29]} 14. Rfd1 {[%clk 0:02:36]}  Qb6 {[%clk 0:02:25]} 15. Qb1 {[%clk 0:02:33]}  h6 {[%clk 0:02:24]} 16. Rc2 {[%clk 0:02:18]}  Nb8 {[%clk 0:02:10]} 17. Rdc1 {[%clk 0:01:48]}  Nc6 {[%clk 0:02:09]} 18. Nd1 {[%clk 0:01:48]}  Nb4 {[%clk 0:02:06]} 19. Rd2 {[%clk 0:01:48]}  Rfd8 {[%clk 0:01:46]} 20. Ne3 {[%clk 0:01:48]}  Nbd5 {[%clk 0:01:31]} 21. Nf1 {[%clk 0:01:38]}  Nb4 {[%clk 0:01:28]} 22. Ne3 {[%clk 0:01:38]}  Nbd5 {[%clk 0:01:27]} 23. Nf1 {[%clk 0:01:38]}  Nb4 {[%clk 0:01:27]} 24. Ne3 {[%clk 0:01:38]} 1/2-1/2


[Site "https://www.chess.com"]

[Event "Titled Tuesday Blitz June 20 Early 2023"]
[White "Mekhane, Adam"]
[Black "Gritsenko, Nikolai"]
[WhiteFideId "36050601"]
[BlackFideId "14112493"]
[WhiteElo "2177"]
[BlackElo "2389"]
[Result "0-1"]
[Round "9"]
[TimeControl "180+2"]
[Date "2023.06.20"]
[WhiteClock "0:01:04"]
[BlackClock "0:00:33"]
[Board "53"]

1. e4 {[%clk 0:03:00]}  d5 {[%clk 0:02:59]} 2. exd5 {[%clk 0:03:00]}  Nf6 {[%clk 0:03:00]} 3. Nf3 {[%clk 0:03:00]}  Nxd5 {[%clk 0:02:56]} 4. d4 {[%clk 0:03:00]}  g6 {[%clk 0:02:55]} 5. Nbd2 {[%clk 0:02:57]}  Bg7 {[%clk 0:02:55]} 6. Ne5 {[%clk 0:02:57]}  O-O {[%clk 0:02:36]} 7. Ndf3 {[%clk 0:02:57]}  Nd7 {[%clk 0:02:30]} 8. Nxd7 {[%clk 0:02:55]}  Bxd7 {[%clk 0:02:29]} 9. Bc4 {[%clk 0:02:55]}  Nb6 {[%clk 0:02:26]} 10. Bb3 {[%clk 0:02:54]}  Bg4 {[%clk 0:02:22]} 11. c3 {[%clk 0:02:54]}  Rc8 {[%clk 0:02:12]} 12. h3 {[%clk 0:02:51]}  Bf5 {[%clk 0:02:08]} 13. Bg5 {[%clk 0:02:46]}  h6 {[%clk 0:02:02]} 14. Bh4 {[%clk 0:02:45]}  c5 {[%clk 0:01:42]} 15. dxc5 {[%clk 0:02:43]}  Rxc5 {[%clk 0:01:41]} 16. O-O {[%clk 0:02:42]}  g5 {[%clk 0:01:37]} 17. Bg3 {[%clk 0:02:42]}  Nc4 {[%clk 0:01:31]} 18. Qc1 {[%clk 0:02:29]}  b5 {[%clk 0:01:28]} 19. Rd1 {[%clk 0:02:29]}  Qc8 {[%clk 0:01:27]} 20. Nd2 {[%clk 0:02:18]}  Nxb2 {[%clk 0:01:13]} 21. Qxb2 {[%clk 0:02:14]}  b4 {[%clk 0:01:13]} 22. Nf3 {[%clk 0:02:07]}  bxc3 {[%clk 0:01:06]} 23. Qc1 {[%clk 0:01:43]}  c2 {[%clk 0:01:04]} 24. Rd4 {[%clk 0:01:44]}  Rd8 {[%clk 0:00:48]} 25. Rxd8+ {[%clk 0:01:34]}  Qxd8 {[%clk 0:00:46]} 26. Qe3 {[%clk 0:01:15]}  Rc3 {[%clk 0:00:40]} 27. Qe1 {[%clk 0:01:08]}  Rxb3 {[%clk 0:00:38]} 28. Rc1 {[%clk 0:01:09]}  Rb1 {[%clk 0:00:33]} 29. Ne5 {[%clk 0:01:04]} 0-1


[Site "https://www.chess.com"]

[Event "Titled Tuesday Blitz June 20 Early 2023"]
[White "Begmuratov, Alisher"]
[Black "Subelj, Jan"]
[WhiteFideId "14203367"]
[BlackFideId "14618583"]
[WhiteElo "2387"]
[BlackElo "2499"]
[Result "1-0"]
[Round "9"]
[TimeControl "180+2"]
[Date "2023.06.20"]
[WhiteClock "0:00:22"]
[BlackClock "0:00:06"]
[Board "54"]

1. e4 {[%clk 0:03:00]}  c6 {[%clk 0:01:33]} 2. d4 {[%clk 0:02:59]}  d5 {[%clk 0:01:33]} 3. Nc3 {[%clk 0:02:59]}  dxe4 {[%clk 0:01:33]} 4. Nxe4 {[%clk 0:03:00]}  Nf6 {[%clk 0:01:33]} 5. Ng3 {[%clk 0:02:58]}  e5 {[%clk 0:01:31]} 6. Nf3 {[%clk 0:02:54]}  exd4 {[%clk 0:01:28]} 7. Nxd4 {[%clk 0:02:55]}  Bc5 {[%clk 0:01:26]} 8. c3 {[%clk 0:02:54]}  O-O {[%clk 0:01:24]} 9. Be2 {[%clk 0:02:54]}  Bxd4 {[%clk 0:01:22]} 10. cxd4 {[%clk 0:02:54]}  h6 {[%clk 0:01:22]} 11. O-O {[%clk 0:02:53]}  Be6 {[%clk 0:01:22]} 12. Be3 {[%clk 0:02:44]}  Nbd7 {[%clk 0:01:22]} 13. Bd3 {[%clk 0:02:37]}  Nb6 {[%clk 0:01:22]} 14. Nf5 {[%clk 0:02:36]}  Bc4 {[%clk 0:01:20]} 15. Bxc4 {[%clk 0:02:29]}  Nxc4 {[%clk 0:01:20]} 16. Qf3 {[%clk 0:02:29]}  Kh7 {[%clk 0:00:51]} 17. Qh3 {[%clk 0:02:01]}  Nxe3 {[%clk 0:00:33]} 18. fxe3 {[%clk 0:02:02]}  Qd7 {[%clk 0:00:26]} 19. Qg3 {[%clk 0:01:44]}  Rg8 {[%clk 0:00:26]} 20. Rf3 {[%clk 0:01:33]}  Rae8 {[%clk 0:00:20]} 21. Raf1 {[%clk 0:01:32]}  Re6 {[%clk 0:00:20]} 22. Qh4 {[%clk 0:01:30]}  Re4 {[%clk 0:00:17]} 23. Qh3 {[%clk 0:01:25]}  Rge8 {[%clk 0:00:17]} 24. Nxh6 {[%clk 0:01:04]}  Qxh3 {[%clk 0:00:18]} 25. Rxh3 {[%clk 0:01:05]}  Rxe3 {[%clk 0:00:16]} 26. Nxf7+ {[%clk 0:00:48]}  Rxh3 {[%clk 0:00:14]} 27. Ng5+ {[%clk 0:00:48]}  Kg8 {[%clk 0:00:12]} 28. Nxh3 {[%clk 0:00:45]}  Re2 {[%clk 0:00:13]} 29. Rf2 {[%clk 0:00:45]}  Re1+ {[%clk 0:00:13]} 30. Rf1 {[%clk 0:00:45]}  Re2 {[%clk 0:00:14]} 31. Rb1 {[%clk 0:00:45]}  Rd2 {[%clk 0:00:13]} 32. Ng5 {[%clk 0:00:43]}  Rxd4 {[%clk 0:00:13]} 33. Nf3 {[%clk 0:00:42]}  Re4 {[%clk 0:00:12]} 34. Rd1 {[%clk 0:00:38]}  Nd5 {[%clk 0:00:12]} 35. Re1 {[%clk 0:00:35]}  Rxe1+ {[%clk 0:00:12]} 36. Nxe1 {[%clk 0:00:36]}  Kf7 {[%clk 0:00:12]} 37. Kf2 {[%clk 0:00:36]}  Kf6 {[%clk 0:00:13]} 38. Nd3 {[%clk 0:00:35]}  Kf5 {[%clk 0:00:14]} 39. Kf3 {[%clk 0:00:35]}  b6 {[%clk 0:00:12]} 40. g4+ {[%clk 0:00:35]}  Kf6 {[%clk 0:00:13]} 41. h4 {[%clk 0:00:34]}  c5 {[%clk 0:00:13]} 42. Ke4 {[%clk 0:00:35]}  Ne7 {[%clk 0:00:13]} 43. g5+ {[%clk 0:00:35]}  Ke6 {[%clk 0:00:13]} 44. Nf4+ {[%clk 0:00:35]}  Kd6 {[%clk 0:00:13]} 45. h5 {[%clk 0:00:36]}  Ng8 {[%clk 0:00:13]} 46. Kf5 {[%clk 0:00:34]}  Ne7+ {[%clk 0:00:12]} 47. Ke4 {[%clk 0:00:34]}  Ng8 {[%clk 0:00:12]} 48. Ne2 {[%clk 0:00:26]}  Ke6 {[%clk 0:00:12]} 49. Ng3 {[%clk 0:00:25]}  Ne7 {[%clk 0:00:11]} 50. Ne2 {[%clk 0:00:25]}  Ng8 {[%clk 0:00:05]} 51. a4 {[%clk 0:00:24]}  a6 {[%clk 0:00:05]} 52. Nf4+ {[%clk 0:00:24]}  Kd6 {[%clk 0:00:05]} 53. Ng6 {[%clk 0:00:24]}  b5 {[%clk 0:00:05]} 54. axb5 {[%clk 0:00:23]}  axb5 {[%clk 0:00:06]} 55. Nh4 {[%clk 0:00:24]}  Ne7 {[%clk 0:00:05]} 56. Nf5+ {[%clk 0:00:23]}  Nxf5 {[%clk 0:00:05]} 57. Kxf5 {[%clk 0:00:24]}  c4 {[%clk 0:00:04]} 58. h6 {[%clk 0:00:24]}  b4 {[%clk 0:00:04]} 59. hxg7 {[%clk 0:00:23]}  c3 {[%clk 0:00:05]} 60. bxc3 {[%clk 0:00:24]}  b3 {[%clk 0:00:05]} 61. g8=Q {[%clk 0:00:22]}  b2 {[%clk 0:00:06]} 1-0


[Site "https://www.chess.com"]

[Event "Titled Tuesday Blitz June 20 Early 2023"]
[White "Krutko, Anatoly"]
[Black "Munkhgal, Gombosuren"]
[WhiteFideId "4185862"]
[BlackFideId "4901266"]
[WhiteElo "2378"]
[BlackElo "2528"]
[Result "0-1"]
[Round "9"]
[TimeControl "180+2"]
[Date "2023.06.20"]
[WhiteClock "0:00:02"]
[BlackClock "0:00:41"]
[Board "55"]

1. d4 {[%clk 0:03:00]}  Nf6 {[%clk 0:02:59]} 2. c4 {[%clk 0:03:00]}  g6 {[%clk 0:02:59]} 3. Nc3 {[%clk 0:03:00]}  Bg7 {[%clk 0:03:00]} 4. e4 {[%clk 0:02:59]}  O-O {[%clk 0:02:59]} 5. Nge2 {[%clk 0:03:00]}  d6 {[%clk 0:03:00]} 6. Ng3 {[%clk 0:03:00]}  e5 {[%clk 0:03:00]} 7. d5 {[%clk 0:03:00]}  a5 {[%clk 0:02:59]} 8. h4 {[%clk 0:03:00]}  h5 {[%clk 0:02:59]} 9. Bg5 {[%clk 0:03:00]}  Qe8 {[%clk 0:02:59]} 10. Be2 {[%clk 0:02:58]}  Na6 {[%clk 0:02:59]} 11. Nf1 {[%clk 0:02:56]}  Nh7 {[%clk 0:02:59]} 12. Be3 {[%clk 0:02:56]}  b6 {[%clk 0:02:58]} 13. f3 {[%clk 0:02:53]}  Nc5 {[%clk 0:02:57]} 14. g4 {[%clk 0:02:48]}  f5 {[%clk 0:02:54]} 15. gxf5 {[%clk 0:02:46]}  gxf5 {[%clk 0:02:55]} 16. Qc2 {[%clk 0:02:32]}  f4 {[%clk 0:02:55]} 17. Bf2 {[%clk 0:02:28]}  a4 {[%clk 0:02:55]} 18. Nd2 {[%clk 0:02:13]}  Bd7 {[%clk 0:02:55]} 19. O-O-O {[%clk 0:02:12]}  Kh8 {[%clk 0:02:55]} 20. Rhg1 {[%clk 0:02:11]}  Bf6 {[%clk 0:02:56]} 21. Rg2 {[%clk 0:01:46]}  Qe7 {[%clk 0:02:56]} 22. Rh1 {[%clk 0:01:44]}  Rg8 {[%clk 0:02:55]} 23. Rxg8+ {[%clk 0:01:39]}  Rxg8 {[%clk 0:02:55]} 24. Qd1 {[%clk 0:01:40]}  Rg2 {[%clk 0:02:53]} 25. Qf1 {[%clk 0:01:38]}  Qg7 {[%clk 0:02:50]} 26. Nb5 {[%clk 0:01:28]}  Bxb5 {[%clk 0:02:49]} 27. cxb5 {[%clk 0:01:29]}  Nf8 {[%clk 0:02:42]} 28. Kb1 {[%clk 0:01:13]}  Nfd7 {[%clk 0:02:36]} 29. Qe1 {[%clk 0:01:14]}  Nf8 {[%clk 0:02:25]} 30. Bf1 {[%clk 0:01:12]}  Rg6 {[%clk 0:02:21]} 31. Bh3 {[%clk 0:01:12]}  Qe7 {[%clk 0:02:20]} 32. Bf5 {[%clk 0:01:09]}  Rg7 {[%clk 0:02:20]} 33. Bxc5 {[%clk 0:01:08]}  dxc5 {[%clk 0:02:16]} 34. Qe2 {[%clk 0:00:56]}  Rg3 {[%clk 0:02:16]} 35. Nf1 {[%clk 0:00:53]}  Rg7 {[%clk 0:02:14]} 36. Nd2 {[%clk 0:00:53]}  Ng6 {[%clk 0:02:14]} 37. Nc4 {[%clk 0:00:44]}  Nxh4 {[%clk 0:02:13]} 38. d6 {[%clk 0:00:44]}  cxd6 {[%clk 0:02:09]} 39. Qd3 {[%clk 0:00:44]}  Rg3 {[%clk 0:02:00]} 40. Nxd6 {[%clk 0:00:40]}  Rxf3 {[%clk 0:01:57]} 41. Qd5 {[%clk 0:00:40]}  Kg7 {[%clk 0:01:53]} 42. Qc6 {[%clk 0:00:37]}  Rd3 {[%clk 0:01:15]} 43. Ne8+ {[%clk 0:00:35]}  Kf7 {[%clk 0:01:15]} 44. Nxf6 {[%clk 0:00:35]}  Qxf6 {[%clk 0:01:16]} 45. Qxf6+ {[%clk 0:00:20]}  Kxf6 {[%clk 0:01:15]} 46. Rxh4 {[%clk 0:00:20]}  Kg5 {[%clk 0:01:08]} 47. Rh2 {[%clk 0:00:20]}  f3 {[%clk 0:01:08]} 48. Kc2 {[%clk 0:00:20]}  Rd4 {[%clk 0:01:04]} 49. Kc3 {[%clk 0:00:14]}  h4 {[%clk 0:00:57]} 50. Kc2 {[%clk 0:00:12]}  Rd8 {[%clk 0:00:50]} 51. Rh3 {[%clk 0:00:11]}  Kf4 {[%clk 0:00:46]} 52. Rxh4+ {[%clk 0:00:11]}  Ke3 {[%clk 0:00:47]} 53. Rh3 {[%clk 0:00:11]}  Rg8 {[%clk 0:00:42]} 54. b3 {[%clk 0:00:09]}  a3 {[%clk 0:00:42]} 55. Kc3 {[%clk 0:00:06]}  Ke2 {[%clk 0:00:41]} 56. Rh1 {[%clk 0:00:04]}  f2 {[%clk 0:00:41]} 57. Bh3 {[%clk 0:00:04]}  Rg3+ {[%clk 0:00:41]} 58. Kc4 {[%clk 0:00:03]}  Rxh3 {[%clk 0:00:42]} 59. Rxh3 {[%clk 0:00:04]}  f1=Q {[%clk 0:00:41]} 60. Rc3 {[%clk 0:00:02]}  Kd2+ {[%clk 0:00:41]} 0-1


[Site "https://www.chess.com"]

[Event "Titled Tuesday Blitz June 20 Early 2023"]
[White "Zaragatski, Ilja"]
[Black "Ning, Kaiyu"]
[WhiteFideId "4655192"]
[BlackFideId "8614750"]
[WhiteElo "2460"]
[BlackElo "2287"]
[Result "0-1"]
[Round "9"]
[TimeControl "180+2"]
[Date "2023.06.20"]
[WhiteClock "0:00:11"]
[BlackClock "0:00:37"]
[Board "56"]

1. d4 {[%clk 0:02:18]}  Nf6 {[%clk 0:02:59]} 2. Nc3 {[%clk 0:02:16]}  d5 {[%clk 0:02:58]} 3. Bf4 {[%clk 0:02:12]}  a6 {[%clk 0:02:56]} 4. e3 {[%clk 0:02:07]}  c5 {[%clk 0:02:55]} 5. Nf3 {[%clk 0:02:05]}  Bg4 {[%clk 0:02:52]} 6. h3 {[%clk 0:02:00]}  Bxf3 {[%clk 0:02:49]} 7. Qxf3 {[%clk 0:01:59]}  Nc6 {[%clk 0:02:49]} 8. O-O-O {[%clk 0:01:58]}  e6 {[%clk 0:02:47]} 9. g4 {[%clk 0:01:54]}  Rc8 {[%clk 0:02:36]} 10. g5 {[%clk 0:01:52]}  cxd4 {[%clk 0:02:28]} 11. exd4 {[%clk 0:01:51]}  Nd7 {[%clk 0:02:28]} 12. Kb1 {[%clk 0:01:37]}  b5 {[%clk 0:02:16]} 13. h4 {[%clk 0:01:34]}  Qb6 {[%clk 0:02:15]} 14. Ne2 {[%clk 0:01:33]}  Na5 {[%clk 0:02:11]} 15. h5 {[%clk 0:01:29]}  Nc4 {[%clk 0:01:46]} 16. g6 {[%clk 0:01:27]}  hxg6 {[%clk 0:01:38]} 17. hxg6 {[%clk 0:01:27]}  Rxh1 {[%clk 0:01:38]} 18. gxf7+ {[%clk 0:01:28]}  Kxf7 {[%clk 0:01:27]} 19. Bc7+ {[%clk 0:01:26]}  Kg8 {[%clk 0:01:24]} 20. Bxb6 {[%clk 0:01:24]}  Rxf1 {[%clk 0:01:24]} 21. Nc1 {[%clk 0:01:01]}  Ndxb6 {[%clk 0:01:15]} 22. Qe2 {[%clk 0:00:58]}  Rxd1 {[%clk 0:01:12]} 23. Qxd1 {[%clk 0:00:59]}  Na4 {[%clk 0:01:05]} 24. Nd3 {[%clk 0:00:58]}  Na3+ {[%clk 0:00:59]} 25. Ka1 {[%clk 0:00:53]}  Nxc2+ {[%clk 0:00:59]} 26. Kb1 {[%clk 0:00:53]}  Nxd4 {[%clk 0:00:55]} 27. Qg4 {[%clk 0:00:48]}  Nf5 {[%clk 0:00:52]} 28. Nf4 {[%clk 0:00:46]}  Rc6 {[%clk 0:00:51]} 29. Nxd5 {[%clk 0:00:39]}  exd5 {[%clk 0:00:50]} 30. Qxf5 {[%clk 0:00:40]}  Rd6 {[%clk 0:00:48]} 31. f4 {[%clk 0:00:23]}  d4 {[%clk 0:00:42]} 32. Qd3 {[%clk 0:00:23]}  Nb6 {[%clk 0:00:43]} 33. Qb3+ {[%clk 0:00:19]}  Nc4 {[%clk 0:00:43]} 34. Kc2 {[%clk 0:00:17]}  d3+ {[%clk 0:00:43]} 35. Kd1 {[%clk 0:00:16]}  d2 {[%clk 0:00:40]} 36. f5 {[%clk 0:00:11]}  Rd3 {[%clk 0:00:37]} 0-1


[Site "https://www.chess.com"]

[Event "Titled Tuesday Blitz June 20 Early 2023"]
[White "Koshulyan, Egor A."]
[Black "Turzo, Attila"]
[WhiteFideId "24237000"]
[BlackFideId "704954"]
[WhiteElo "2216"]
[BlackElo "2532"]
[Result "1/2-1/2"]
[Round "9"]
[TimeControl "180+2"]
[Date "2023.06.20"]
[WhiteClock "0:00:03"]
[BlackClock "0:00:21"]
[Board "58"]

1. e4 {[%clk 0:02:53]}  d6 {[%clk 0:01:27]} 2. d4 {[%clk 0:02:46]}  Nf6 {[%clk 0:01:28]} 3. Nc3 {[%clk 0:02:46]}  g6 {[%clk 0:01:28]} 4. f4 {[%clk 0:02:46]}  Bg7 {[%clk 0:01:29]} 5. Nf3 {[%clk 0:02:45]}  O-O {[%clk 0:01:29]} 6. e5 {[%clk 0:02:45]}  dxe5 {[%clk 0:01:28]} 7. fxe5 {[%clk 0:02:46]}  Nd5 {[%clk 0:01:27]} 8. Bc4 {[%clk 0:02:44]}  Nb6 {[%clk 0:01:25]} 9. Bb3 {[%clk 0:02:44]}  Nc6 {[%clk 0:01:21]} 10. O-O {[%clk 0:02:43]}  Na5 {[%clk 0:01:21]} 11. Ne4 {[%clk 0:02:39]}  Nxb3 {[%clk 0:01:19]} 12. axb3 {[%clk 0:02:39]}  f6 {[%clk 0:01:18]} 13. Bf4 {[%clk 0:02:37]}  Nd5 {[%clk 0:01:14]} 14. Bd2 {[%clk 0:02:37]}  f5 {[%clk 0:01:13]} 15. Nc5 {[%clk 0:02:36]}  b6 {[%clk 0:01:05]} 16. Nd3 {[%clk 0:02:36]}  e6 {[%clk 0:01:01]} 17. c4 {[%clk 0:02:16]}  Ne7 {[%clk 0:01:01]} 18. Be3 {[%clk 0:01:58]}  Qd7 {[%clk 0:01:01]} 19. Qd2 {[%clk 0:01:53]}  Bb7 {[%clk 0:01:01]} 20. Rad1 {[%clk 0:01:54]}  Rad8 {[%clk 0:01:02]} 21. b4 {[%clk 0:01:49]}  a6 {[%clk 0:01:00]} 22. Kh1 {[%clk 0:01:45]}  Kh8 {[%clk 0:00:58]} 23. Ng5 {[%clk 0:01:42]}  h6 {[%clk 0:00:56]} 24. Nf3 {[%clk 0:01:37]}  g5 {[%clk 0:00:57]} 25. Bxg5 {[%clk 0:01:17]}  hxg5 {[%clk 0:00:55]} 26. Qxg5 {[%clk 0:01:18]}  Bxf3 {[%clk 0:00:39]} 27. Rxf3 {[%clk 0:01:19]}  Nc6 {[%clk 0:00:29]} 28. Nf4 {[%clk 0:01:11]}  Nxe5 {[%clk 0:00:29]} 29. Rh3+ {[%clk 0:01:11]}  Kg8 {[%clk 0:00:30]} 30. Re1 {[%clk 0:00:25]}  Ng4 {[%clk 0:00:22]} 31. Qh4 {[%clk 0:00:25]}  Qxd4 {[%clk 0:00:20]} 32. Qh7+ {[%clk 0:00:21]}  Kf7 {[%clk 0:00:20]} 33. Qg6+ {[%clk 0:00:20]}  Kg8 {[%clk 0:00:21]} 34. Qh7+ {[%clk 0:00:17]}  Kf7 {[%clk 0:00:21]} 35. Qg6+ {[%clk 0:00:07]}  Kg8 {[%clk 0:00:21]} 36. Qh7+ {[%clk 0:00:03]} 1/2-1/2


[Site "https://www.chess.com"]